bitfinex-derivatives/quotes_ETHF0:USTF0_20241004
["timestamp","ask_amount","ask_price","bid_price","bid_amount"]
[1728077519338,0.7859,2427.0,2426.8,0.41204]
[1728077519639,1.19792,2427.0,2426.8,0.41204]
[1728077521541,1.19792,2427.0,2426.6,0.3864]
[1728077521841,1.19792,2427.0,2426.9,0.41202]
[1728077526034,1.19792,2427.0,2426.8,0.41203]
[1728077531743,1.19792,2427.0,2426.6,0.7734]
[1728077532045,1.19792,2427.0,2426.8,0.41202]
[1728077532544,1.19792,2427.0,2426.9,0.41202]
[1728077532749,1.19792,2427.0,2426.6,0.7734]
[1728077532945,1.19792,2427.0,2426.8,0.41202]
[1728077539155,0.7859,2427.0,2426.9,0.41202]
[1728077539544,0.7859,2427.0,2426.8,0.41203]
[1728077539545,1.19791,2427.0,2426.8,0.41203]
[1728077542948,1.19791,2427.0,2426.6,0.7734]
[1728077543858,1.19791,2427.0,2426.8,0.41203]
[1728077544356,0.41202,2426.9,2426.8,0.41203]
[1728077550557,0.41205,2426.8,2426.7,0.41205]
[1728077550759,0.41205,2426.8,2426.7,0.94489425]
[1728077552454,0.41203,2426.9,2426.8,0.41203]
[1728077552653,0.41203,2426.9,2426.8,0.94487425]
[1728077554051,0.41203,2426.9,2426.8,0.41203]
[1728077554450,1.19791,2427.0,2426.9,0.41202]
[1728077561770,1.19791,2427.0,2426.8,0.41203]
[1728077562572,1.19791,2427.0,2426.9,0.41202]
[1728077563271,0.7859,2427.0,2426.9,0.41202]
[1728077563674,1.19791,2427.0,2426.9,0.41202]
[1728077564873,1.19791,2427.0,2426.6,1.80359]
[1728077565070,1.19791,2427.0,2426.9,0.41202]
[1728077566370,0.41203,2426.9,2426.7,0.41204]
[1728077566569,0.41203,2426.9,2426.8,0.53304247]
[1728077567878,0.41203,2426.9,2426.8,0.94508247]
[1728077568680,0.41203,2426.9,2426.8,0.94509068]
[1728077568976,0.7859,2427.0,2426.8,0.41204]
[1728077569170,1.19792,2427.0,2426.8,0.41204]
[1728077571471,1.19792,2427.0,2426.6,0.7734]
[1728077571671,1.19792,2427.0,2426.8,0.41203]
[1728077578589,0.7859,2427.0,2426.8,0.41203]
[1728077578783,0.41202,2426.9,2426.8,0.41203]
[1728077578986,0.41202,2426.9,2426.8,0.94509579]
[1728077579788,0.41202,2426.9,2426.8,0.41203]
[1728077579986,0.41202,2426.9,2426.8,0.94509622]
[1728077580289,0.41202,2426.9,2426.8,0.41203]
[1728077581189,0.7859,2427.0,2426.9,0.41202]
[1728077581488,0.7859,2427.0,2426.9,1.22332]
[1728077581489,0.3905,2427.0,2426.9,1.22332]
[1728077581690,0.80251,2427.0,2426.9,1.22332]
[1728077583186,0.80251,2427.0,2426.9,0.8113]
[1728077589492,0.80251,2427.0,2426.9,1.2227]
[1728077590492,0.80251,2427.0,2426.9,1.63472]
[1728077591091,0.80251,2427.0,2426.9,1.2227]
[1728077592396,0.41201,2427.0,2426.9,1.2227]
[1728077597700,0.41201,2427.0,2426.9,1.63472]
[1728077598404,0.41201,2427.0,2426.9,1.2227]
[1728077600802,2.22415,2427.2,2426.9,1.2227]
[1728077600995,2.22415,2427.2,2426.9,1.63471]
[1728077601197,0.41201,2427.0,2426.9,1.63471]
[1728077601498,0.41201,2427.0,2426.9,1.2227]
[1728077601706,0.41201,2427.0,2426.9,1.63472]
[1728077602398,0.41201,2427.0,2426.9,1.2227]
[1728077602705,0.41201,2427.0,2426.9,1.63472]
[1728077603204,0.41201,2427.0,2426.9,1.2227]
[1728077603906,2.22415,2427.2,2426.9,1.2227]
[1728077604110,0.41201,2427.0,2426.9,1.63471]
[1728077604302,0.412,2427.1,2426.9,2.16776559]
[1728077604502,0.41199,2427.1,2426.9,1.63471]
[1728077605508,0.41201,2427.0,2426.9,1.63471]
[1728077605708,0.41201,2427.0,2426.9,2.16776139]
[1728077609007,1.1942,2427.2,2426.9,2.16776139]
[1728077609305,0.412,2427.1,2426.9,1.63471]
[1728077615116,0.41201,2427.0,2426.9,1.63471]
[1728077615512,0.41201,2427.0,2426.9,2.16774755]
[1728077615909,0.41201,2427.0,2426.9,1.63471]
[1728077616111,0.41201,2427.0,2426.9,2.16774799]
[1728077616711,0.412,2427.1,2426.9,2.16774799]
[1728077616918,0.412,2427.1,2426.9,1.63471]
[1728077622617,0.412,2427.1,2426.9,1.63472]
[1728077627023,1.60618,2427.2,2426.9,1.63471]
[1728077628122,0.41199,2427.1,2426.9,1.63471]
[1728077631430,0.41199,2427.1,2426.9,1.2227]
[1728077631729,0.412,2427.1,2426.9,1.2227]
[1728077632529,0.412,2427.1,2426.9,1.63472]
[1728077632728,0.412,2427.1,2426.9,1.22332]
[1728077641241,1.1942,2427.2,2426.9,0.8113]
[1728077641440,1.1942,2427.2,2426.8,0.41204]
[1728077641441,0.41201,2427.0,2426.8,0.41204]
[1728077641630,0.7968,2426.9,2426.8,0.41204]
[1728077641939,1.215,2426.9,2426.8,0.94486713]
[1728077642942,1.215,2426.9,2426.8,4.53284]
[1728077643132,1.215,2426.9,2426.8,0.41204]
[1728077643335,1.62702,2426.9,2426.8,0.94486494]
[1728077643642,1.62702,2426.9,2426.8,1.47769241]
[1728077644031,1.62702,2426.9,2426.8,5.06566747]
[1728077644233,1.62702,2426.9,2426.8,0.94486747]
[1728077646142,1.62702,2426.9,2426.8,5.06566747]
[1728077646343,1.62702,2426.9,2426.8,0.94486747]
[1728077646533,1.62702,2426.9,2426.8,4.15266747]
[1728077646737,1.62702,2426.9,2426.8,8.27346747]
[1728077646937,1.62702,2426.9,2426.8,4.15266747]
[1728077647135,1.62702,2426.9,2426.8,8.27346747]
[1728077647738,1.62702,2426.9,2426.8,4.15266747]
[1728077648643,1.62702,2426.9,2426.8,8.27346747]
[1728077648947,1.215,2426.9,2426.8,8.27346747]
[1728077650148,1.215,2426.9,2426.8,7.74064]
[1728077650349,1.215,2426.9,2426.8,8.27349751]
[1728077650747,1.215,2426.9,2426.8,4.15269751]
[1728077651048,1.62702,2426.9,2426.8,4.15269751]
[1728077651350,1.215,2426.9,2426.8,8.27349751]
[1728077651541,1.215,2426.9,2426.8,5.06569751]
[1728077651740,1.215,2426.9,2426.8,8.27349751]
[1728077651939,1.215,2426.9,2426.8,4.15269751]
[1728077653051,1.215,2426.9,2426.8,0.94489751]
[1728077653562,1.215,2426.9,2426.8,4.15269751]
[1728077653754,1.215,2426.9,2426.8,0.94490908]
[1728077654054,1.215,2426.9,2426.8,0.41204]
[1728077654243,1.215,2426.9,2426.8,0.94491294]
[1728077654443,1.215,2426.9,2426.8,1.47779099]
[1728077655146,1.215,2426.9,2426.8,0.94491805]
[1728077657454,1.215,2426.9,2426.8,0.94492861]
[1728077658462,1.215,2426.9,2426.8,1.79755871]
[1728077658867,1.215,2426.9,2426.8,0.94492861]
[1728077660563,1.215,2426.9,2426.8,1.79758955]
[1728077660956,1.215,2426.9,2426.8,0.41204]
[1728077661160,1.215,2426.9,2426.8,0.94494396]
[1728077661366,1.215,2426.9,2426.8,1.79760432]
[1728077662263,1.215,2426.9,2426.8,1.79761943]
[1728077664555,1.62702,2426.9,2426.8,1.79761943]
[1728077664757,1.62702,2426.9,2426.6,5.10808232]
[1728077664962,1.62702,2426.9,2426.8,0.53295436]
[1728077665163,0.41204,2426.8,2426.7,0.41204]
[1728077665469,1.62703,2426.9,2426.8,0.41204]
[1728077665673,1.62703,2426.9,2426.8,0.94499679]
[1728077667868,1.215,2426.9,2426.8,0.41204]
[1728077668068,1.215,2426.9,2426.8,0.94499243]
[1728077670957,1.62702,2426.9,2426.8,0.94499243]
[1728077671465,1.215,2426.9,2426.8,0.41204]
[1728077671675,1.215,2426.9,2426.8,0.94494014]
[1728077673064,1.62702,2426.9,2426.8,0.94494014]
[1728077673372,1.215,2426.9,2426.8,0.94494014]
[1728077674866,1.215,2426.9,2426.8,0.41204]
[1728077675265,1.215,2426.9,2426.8,0.94491764]
[1728077678272,1.215,2426.9,2426.8,0.94490339]
[1728077681683,1.215,2426.9,2426.8,0.94492534]
[1728077684876,1.215,2426.9,2426.8,0.41204]
[1728077695986,1.62703,2426.9,2426.6,0.81696]
[1728077696182,1.62703,2426.9,2426.6,0.41206]
[1728077696183,1.215,2426.9,2426.6,0.41206]
[1728077696377,1.215,2426.9,2426.5,0.4223]
[1728077696587,1.62703,2426.9,2426.6,0.41207]
[1728077696787,0.41207,2426.7,2426.4,0.8195]
[1728077696988,0.411,2426.6,2426.2,0.425]
[1728077697188,0.41209,2426.5,2426.2,1.23223]
[1728077697391,1.63468,2426.6,2426.2,1.23223]
[1728077697683,1.2226,2426.6,2426.3,0.41212]
[1728077700795,1.2226,2426.6,2426.4,0.41211]
[1728077705084,7.3286,2426.5,2425.8,1.71636037]
[1728077705293,1.19,2426.3,2425.9,0.53204584]
[1728077705488,1.19,2426.3,2425.8,4.01055037]
[1728077705489,0.41216,2426.1,2425.8,4.01055037]
[1728077705892,0.41216,2426.1,2425.8,2.82055037]
[1728077706087,0.41216,2426.1,2425.8,0.3876]
[1728077706296,1.62756,2426.2,2425.8,0.79981]
[1728077706991,1.62756,2426.2,2425.8,0.3876]
[1728077707195,1.62756,2426.2,2425.9,0.41219]
[1728077707698,5.74916,2426.2,2425.9,0.41219]
[1728077709096,5.74916,2426.2,2425.8,0.7998]
[1728077709297,1.62756,2426.2,2425.8,0.7998]
[1728077709497,0.41217,2426.1,2425.7,0.41222]
[1728077710500,0.41218,2426.1,2425.7,0.41222]
[1728077710689,0.41218,2426.0,2425.7,0.41222]
[1728077711093,0.4233,2425.9,2425.6,10.10953484]
[1728077711489,0.41222,2425.8,2425.6,8.50730484]
[1728077711691,0.4106,2425.8,2425.2,0.096]
[1728077711891,0.41227,2425.5,2425.3,0.4006]
[1728077712091,0.4065,2425.7,2425.3,0.81289]
[1728077712092,0.41226,2425.6,2425.3,0.81289]
[1728077712299,0.4233,2425.4,2425.3,0.81289]
[1728077712796,0.4233,2425.4,2425.2,0.4154]
[1728077713197,1.24618,2425.4,2425.2,0.4154]
[1728077713400,0.8339,2425.4,2425.2,0.4154]
[1728077713595,1.24618,2425.4,2425.2,0.4154]
[1728077713793,0.8339,2425.4,2425.2,0.4154]
[1728077714096,0.8339,2425.4,2425.2,0.8277]
[1728077714791,0.41229,2425.3,2425.0,2.1604805]
[1728077714989,0.8143,2425.3,2425.0,2.5728205]
[1728077715187,0.8143,2425.3,2425.0,2.1604805]
[1728077716093,0.8143,2425.3,2425.0,2.5728205]
[1728077716293,0.8143,2425.3,2425.0,2.1604805]
[1728077716700,0.8143,2425.3,2425.0,2.5728205]
[1728077716901,0.8143,2425.3,2425.0,2.1604805]
[1728077717100,0.8143,2425.3,2424.9,1.5848]
[1728077717290,0.81431,2425.3,2424.9,1.99716]
[1728077719200,0.41232,2425.2,2424.9,0.3948]
[1728077719504,0.41232,2425.2,2424.8,4.02167]
[1728077719701,0.41232,2425.2,2424.9,0.3875]
[1728077720200,0.41235,2425.0,2424.8,0.4015]
[1728077720701,0.3973,2424.9,2424.8,0.4015]
[1728077721298,0.3973,2424.9,2424.8,0.81388]
[1728077722500,0.4065,2425.0,2422.7,14.39340746]
[1728077722709,0.81885,2425.0,2424.6,0.568]
[1728077722896,0.423,2424.9,2424.7,0.41239]
[1728077723097,0.423,2424.9,2424.6,0.568]
[1728077723297,0.83537,2424.9,2424.6,0.9804]
[1728077723499,0.83537,2424.9,2424.6,0.568]
[1728077724299,0.83537,2424.9,2424.6,0.98041]
[1728077725698,0.8205,2424.9,2424.6,0.4108]
[1728077725906,0.41239,2424.8,2424.6,0.4108]
[1728077726411,1.23287,2424.9,2424.6,0.82321]
[1728077727304,0.41238,2424.8,2424.6,0.82321]
[1728077727608,0.41238,2424.8,2424.5,4.81022]
[1728077727810,0.8205,2424.9,2424.5,4.81022]
[1728077727811,0.41241,2424.7,2424.5,4.3978]
[1728077728706,0.4124,2424.7,2424.5,4.3978]
[1728077728910,1.23287,2424.9,2424.6,0.41241]
[1728077729209,0.8205,2424.9,2424.6,0.41241]
[1728077729409,1.23288,2424.9,2424.6,0.41241]
[1728077729604,0.41239,2424.8,2424.7,0.7945]
[1728077729803,1.23287,2424.9,2424.7,0.7945]
[1728077730199,0.096,2425.3,2424.8,1.19]
[1728077730502,0.096,2425.5,2425.4,0.41228]
[1728077730702,0.41225,2425.6,2425.3,0.82098]
[1728077730903,0.41225,2425.6,2425.3,1.20678]
[1728077732603,4.0068,2425.7,2425.3,0.7945]
[1728077732811,0.41225,2425.6,2425.3,1.20679]
[1728077734011,0.41225,2425.6,2425.4,0.41227]
[1728077734207,0.41225,2425.6,2425.3,1.20678]
[1728077736812,2.13532123,2425.8,2425.7,0.41223]
[1728077737501,2.13532123,2425.8,2425.7,0.83583]
[1728077740707,2.13532123,2425.8,2425.7,0.4236]
[1728077740916,2.13532123,2425.8,2425.7,0.83583]
[1728077741618,3.08808668,2425.9,2425.7,0.83583]
[1728077741911,2.67589668,2425.9,2425.7,0.83583]
[1728077742118,2.67589668,2425.9,2425.8,0.4239]
[1728077742714,0.41219,2426.0,2425.8,0.4239]
[1728077743517,0.41219,2425.9,2425.8,0.4239]
[1728077743709,7.60887601,2426.1,2425.8,0.4239]
[1728077743910,0.41219,2426.0,2425.8,0.4239]
[1728077745408,3.62326601,2426.0,2425.8,0.4239]
[1728077747728,3.21107601,2426.0,2425.8,0.4239]
[1728077748028,1.6022,2425.9,2425.6,0.41224]
[1728077748326,1.6022,2425.9,2425.4,0.4182]
[1728077748327,0.79972,2425.8,2425.5,0.41225]
[1728077748526,1.19272,2425.8,2425.5,0.41225]
[1728077748820,0.7805,2425.8,2425.5,0.41225]
[1728077749015,0.7805,2425.8,2425.5,0.41226]
[1728077749016,1.19272,2425.8,2425.5,0.41226]
[1728077749323,1.19272,2425.8,2425.5,0.41225]
[1728077749511,1.19272,2425.8,2425.5,0.41226]
[1728077751215,3.22073011,2425.7,2425.5,0.41226]
[1728077751415,3.22073011,2425.7,2425.4,1.2089]
[1728077751621,3.22073011,2425.7,2425.5,0.41225]
[1728077753028,3.22073011,2425.7,2425.6,0.41224]
[1728077754227,3.22073011,2425.7,2425.5,0.41225]
[1728077754432,3.22073011,2425.6,2425.5,0.41225]
[1728077754921,3.22073011,2425.6,2425.5,4.53465]
[1728077755722,3.22073011,2425.6,2425.5,0.41225]
[1728077757121,4.17177144,2425.7,2425.4,0.7907]
[1728077757319,4.17177144,2425.7,2425.5,0.41225]
[1728077757530,3.22457381,2425.6,2425.5,0.41225]
[1728077757724,4.17177144,2425.7,2425.5,0.41225]
[1728077757924,3.22461867,2425.6,2425.5,0.41225]
[1728077759325,4.17177144,2425.7,2425.5,0.41225]
[1728077760331,3.75954144,2425.6,2425.5,0.41225]
[1728077762432,5.46336247,2425.8,2425.6,0.41224]
[1728077762433,3.75954144,2425.7,2425.6,0.41224]
[1728077763233,0.41227,2425.5,2425.3,0.41229]
[1728077763529,4.43566692,2425.4,2425.2,0.41231]
[1728077764035,3.22537692,2425.3,2425.2,0.41231]
[1728077764436,3.63766692,2425.3,2425.2,0.41231]
[1728077764634,3.22537692,2425.3,2425.2,0.41231]
[1728077765841,3.22537692,2425.3,2425.1,3.2078]
[1728077766136,3.63767692,2425.3,2425.1,3.62012]
[1728077766323,0.3933,2425.2,2425.1,3.62012]
[1728077768624,3.61799866,2425.2,2425.1,3.62012]
[1728077771846,0.3933,2425.2,2425.1,3.62012]
[1728077775648,0.3933,2425.2,2425.1,0.41232]
[1728077778344,3.08167478,2425.2,2425.1,0.41232]
[1728077780056,3.08167478,2425.2,2425.0,0.41234]
[1728077780057,3.49399478,2425.2,2425.0,0.41234]
[1728077780542,3.49399478,2425.2,2424.9,0.41235]
[1728077780752,2.15056081,2425.0,2424.9,0.41235]
[1728077781951,2.92616081,2425.0,2424.9,0.41235]
[1728077782841,2.92616081,2425.0,2424.9,0.94443949]
[1728077783450,0.7756,2425.0,2424.9,0.94443949]
[1728077785146,1.18795,2425.0,2424.9,0.53208949]
[1728077785652,1.18795,2425.0,2424.9,1.3834077]
[1728077786251,0.7756,2425.0,2424.9,1.7957677]
[1728077786744,0.7756,2425.0,2424.9,1.3834077]
[1728077786945,1.18795,2425.0,2424.9,1.3834077]
[1728077787650,0.7756,2425.0,2424.9,1.3834077]
[1728077787952,1.18795,2425.0,2424.9,1.3834077]
[1728077788349,3.33727462,2425.0,2424.9,1.3834077]
[1728077788547,3.87619001,2425.0,2424.9,1.3834077]
[1728077788747,1.18795,2425.0,2424.9,1.3834077]
[1728077788947,1.18795,2425.0,2424.9,1.38355277]
[1728077788948,3.87619001,2425.0,2424.9,1.38355277]
[1728077789253,3.87619001,2425.0,2424.9,1.38361926]
[1728077789452,3.87619001,2425.0,2424.9,1.38361928]
[1728077789949,3.87619001,2425.0,2424.9,0.53208949]
[1728077789950,3.46384001,2425.0,2424.9,0.53208949]
[1728077790155,3.87619001,2425.0,2424.9,0.53208949]
[1728077790355,3.87619001,2425.0,2424.9,1.38365672]
[1728077790654,3.87619001,2425.0,2424.9,0.53208949]
[1728077790854,3.87619001,2425.0,2424.9,1.38367597]
[1728077791057,3.46384001,2425.0,2424.9,1.79603597]
[1728077791349,3.46384001,2425.0,2424.9,0.53208949]
[1728077791350,0.7756,2425.0,2424.9,0.53208949]
[1728077791949,1.18795,2425.0,2424.9,0.53231674]
[1728077792551,1.18795,2425.0,2424.8,0.41238]
[1728077792752,3.07683998,2424.9,2424.8,0.41238]
[1728077792952,3.07694487,2424.9,2424.8,0.94473608]
[1728077793853,0.389,2424.9,2424.8,0.94473608]
[1728077795560,0.389,2424.9,2424.8,0.41238]
[1728077795857,0.389,2424.9,2424.8,0.94484847]
[1728077797055,3.07671129,2424.9,2424.8,0.94484847]
[1728077798761,3.07671129,2424.9,2424.8,0.53246847]
[1728077798957,3.07671129,2424.9,2424.7,2.01858]
[1728077799161,3.07671129,2424.9,2424.8,0.53248778]
[1728077799457,0.80136,2424.9,2424.7,0.4162]
[1728077799652,3.48890801,2424.9,2424.7,0.4162]
[1728077799854,2.68754801,2424.8,2424.7,0.4162]
[1728077800054,2.68754801,2424.8,2424.7,0.94870758]
[1728077800260,2.68754801,2424.8,2424.7,1.36110758]
[1728077801059,3.07654801,2424.9,2424.7,1.36110758]
[1728077801261,3.07654801,2424.9,2424.8,0.53250758]
[1728077801858,3.48890801,2424.9,2424.8,0.53250758]
[1728077802253,3.48889541,2424.9,2424.8,0.53250758]
[1728077802468,0.80136,2424.9,2424.7,0.8286]
[1728077802766,0.80136,2424.9,2424.8,0.53254131]
[1728077804672,3.48925284,2424.9,2424.8,0.53254131]
[1728077804966,0.80136,2424.9,2424.8,0.53254131]
[1728077805762,0.80136,2424.9,2424.7,0.82859]
[1728077805956,2.68809531,2424.8,2424.7,0.82859]
[1728077806156,2.68809531,2424.8,2424.7,1.36118506]
[1728077807559,2.68809531,2424.8,2424.7,0.94879506]
[1728077808054,2.68809531,2424.8,2424.7,1.36119506]
[1728077809270,3.48945531,2424.9,2424.7,0.8286]
[1728077809455,2.68809531,2424.8,2424.7,0.8286]
[1728077809766,2.68809531,2424.8,2424.7,1.36123287]
[1728077812774,2.68809531,2424.8,2424.7,0.8286]
[1728077813377,2.68809531,2424.8,2424.7,1.89389594]
[1728077814174,2.68809531,2424.9,2424.7,1.48149594]
[1728077814377,2.68809531,2424.9,2424.8,0.94502372]
[1728077815571,2.68809531,2424.9,2424.8,5.06902372]
[1728077815773,2.68809531,2424.9,2424.8,8.27682372]
[1728077816070,2.68809531,2425.0,2424.9,0.41236]
[1728077816272,2.68809531,2425.0,2424.9,2.95610372]
[1728077816775,2.68809531,2425.0,2424.9,7.08010372]
[1728077816979,2.68809531,2425.0,2424.9,2.95610372]
[1728077817175,2.68809531,2425.0,2424.9,13.08010372]
[1728077817366,2.68809531,2425.0,2424.9,12.54746]
[1728077817567,2.68809531,2425.0,2424.9,13.08009113]
[1728077817568,0.90939531,2425.0,2424.9,13.08009113]
[1728077817865,2.15068948,2425.0,2424.9,13.93228591]
[1728077818067,2.15068948,2425.0,2424.9,13.51718591]
[1728077818468,1.83938948,2425.0,2424.9,13.51718591]
[1728077818960,3.22493874,2425.4,2424.9,13.10482591]
[1728077819159,3.22493874,2425.4,2425.3,0.41229]
[1728077821370,3.22493874,2425.5,2425.3,4.53548]
[1728077821576,3.22493874,2425.5,2425.4,1.19]
[1728077822071,3.22493874,2425.5,2425.4,1.60228]
[1728077822476,4.44443874,2425.6,2425.5,0.41226]
[1728077822680,1.2195,2425.6,2425.5,0.41226]
[1728077822874,1.2195,2425.6,2425.4,1.60226]
[1728077823581,1.2195,2425.6,2425.4,1.19]
[1728077823766,1.2195,2425.6,2425.5,0.41226]
[1728077825473,1.63174,2425.6,2425.4,1.60227]
[1728077826870,1.63174,2425.6,2425.4,1.19]
[1728077827177,1.63174,2425.6,2425.4,1.60227]
[1728077827577,1.2195,2425.6,2425.5,0.41226]
[1728077828480,1.63175,2425.6,2425.5,0.41226]
[1728077829076,1.2195,2425.6,2425.5,0.41226]
[1728077829472,1.63174,2425.6,2425.4,1.19]
[1728077829673,1.63174,2425.6,2425.4,1.60227]
[1728077830076,1.2195,2425.6,2425.4,1.19]
[1728077830371,1.2195,2425.6,2425.5,0.41226]
[1728077831774,1.63174,2425.6,2425.5,0.41226]
[1728077831971,1.2195,2425.6,2425.5,1.60226]
[1728077832177,0.4213,2425.6,2425.5,1.60226]
[1728077835782,0.4213,2425.6,2425.0,3.2078]
[1728077835976,0.41231,2425.2,2425.1,0.53172401]
[1728077836179,0.41233,2425.1,2425.0,3.2078]
[1728077836370,1.65263,2425.1,2425.0,3.2078]
[1728077836576,0.41238,2424.9,2424.7,1.60239]
[1728077836779,0.41238,2424.9,2424.8,0.5317415]
[1728077837281,0.41236,2425.0,2424.8,0.9441115]
[1728077837483,0.41236,2425.0,2424.9,0.5317415]
[1728077838286,0.41236,2425.0,2424.9,0.9441015]
[1728077841485,1.65264,2425.1,2424.9,0.9441015]
[1728077841687,1.65264,2425.1,2424.9,0.41236]
[1728077841992,0.41235,2425.0,2424.8,1.60237]
[1728077842183,0.41235,2425.0,2424.9,0.53174376]
[1728077842382,0.41235,2425.0,2424.9,0.94410376]
[1728077842887,1.2403,2425.1,2424.9,0.94410376]
[1728077843088,1.65264,2425.1,2424.9,0.41236]
[1728077843786,1.2403,2425.1,2424.8,1.19]
[1728077844084,1.2403,2425.1,2425.0,0.41235]
[1728077846491,1.2403,2425.1,2425.0,0.94417422]
[1728077846786,1.2403,2425.1,2425.0,0.41235]
[1728077847179,1.2403,2425.1,2425.0,2.13417356]
[1728077847386,2.68451111,2425.4,2425.3,0.41229]
[1728077847595,0.3935,2425.4,2425.3,1.60229]
[1728077850782,0.3935,2425.4,2425.3,0.41229]
[1728077850980,0.41233,2425.2,2424.9,0.41235]
[1728077851194,0.82813,2425.1,2425.0,0.53185261]
[1728077851386,0.82813,2425.1,2425.0,0.53187506]
[1728077851694,0.4158,2425.1,2425.0,0.53187506]
[1728077851888,0.82813,2425.1,2425.0,0.53187506]
[1728077854787,0.82813,2425.1,2424.9,0.41236]
[1728077855291,0.82813,2425.1,2425.0,0.5320244]
[1728077860695,0.4158,2425.1,2425.0,0.9443744]
[1728077861499,0.4158,2425.1,2425.0,1.79634983]
[1728077861891,0.4158,2425.1,2425.0,0.41235]
[1728077862093,0.4158,2425.1,2425.0,1.26431157]
[1728077862295,0.4158,2425.1,2425.0,1.79678755]
[1728077865400,0.4158,2425.1,2425.0,1.26450534]
[1728077865804,0.4158,2425.1,2425.0,2.11664181]
[1728077866706,0.4158,2425.1,2425.0,1.79707176]
[1728077868906,0.8018,2425.1,2425.0,1.79707176]
[1728077870709,1.21413,2425.1,2425.0,1.79707176]
[1728077871707,0.8018,2425.1,2425.0,1.79707176]
[1728077871906,1.21413,2425.1,2425.0,1.79707176]
[1728077872212,1.21413,2425.1,2425.0,0.41235]
[1728077872513,1.21413,2425.1,2425.0,1.79707896]
[1728077874406,0.8018,2425.1,2425.0,1.79707896]
[1728077874906,0.8018,2425.1,2425.0,0.94493806]
[1728077875309,0.8018,2425.1,2425.0,0.41235]
[1728077875709,0.8018,2425.1,2425.0,0.94502844]
[1728077878325,0.8018,2425.1,2425.0,1.79725842]
[1728077879028,0.8018,2425.1,2425.0,0.41235]
[1728077879227,0.8018,2425.1,2425.0,1.79719539]
[1728077879428,0.8018,2425.1,2425.0,0.94498284]
[1728077880126,0.41231,2425.3,2425.0,0.53263284]
[1728077880328,1.76361,2425.3,2425.1,1.60232]
[1728077880519,1.3513,2425.3,2425.1,1.19]
[1728077880826,0.41231,2425.2,2425.1,1.19]
[1728077881922,1.76361,2425.3,2425.1,1.60232]
[1728077882224,0.41231,2425.2,2425.1,1.19]
[1728077882423,0.41231,2425.2,2425.1,2.13520359]
[1728077882621,1.7636,2425.3,2425.1,2.13520359]
[1728077882825,1.3513,2425.3,2425.1,1.60233]
[1728077883126,0.41231,2425.2,2425.1,1.60233]
[1728077883627,0.41231,2425.2,2425.1,2.13518233]
[1728077885219,0.41231,2425.2,2425.1,1.19]
[1728077885424,0.41231,2425.2,2425.1,1.72281877]
[1728077885925,0.41231,2425.2,2425.1,1.60233]
[1728077886325,0.41231,2425.2,2425.1,2.13514518]
[1728077886725,1.3513,2425.3,2425.1,1.72281518]
[1728077886921,1.3513,2425.3,2425.2,0.41231]
[1728077887121,1.3513,2425.3,2425.2,1.05521]
[1728077887122,4.57376775,2425.3,2425.2,1.05521]
[1728077887320,3.22246775,2425.3,2425.2,2.24521]
[1728077887625,0.3935,2425.4,2425.3,0.41229]
[1728077887834,1.2825,2425.5,2425.4,0.41228]
[1728077888029,1.69476,2425.5,2425.4,0.94507144]
[1728077888229,7.3977723,2425.6,2425.4,2.13506144]
[1728077888431,8.6814723,2425.6,2425.4,1.60227]
[1728077889032,8.2692123,2425.6,2425.4,1.60227]
[1728077889334,8.6814723,2425.6,2425.4,1.60227]
[1728077889526,5.45900455,2425.6,2425.4,1.60227]
[1728077890131,0.41226,2425.5,2425.4,1.19]
[1728077890332,0.41226,2425.5,2425.4,1.72263917]
[1728077891133,1.69596,2425.6,2425.4,2.13491917]
[1728077891319,1.2837,2425.6,2425.4,1.19]
[1728077891524,0.41226,2425.5,2425.4,1.19]
[1728077891721,0.41226,2425.5,2425.4,1.7225969]
[1728077892229,0.41226,2425.5,2425.4,1.19]
[1728077892437,0.41226,2425.5,2425.4,1.72257578]
[1728077893345,1.69596,2425.6,2425.4,2.13485578]
[1728077893626,1.69596,2425.6,2425.4,1.60228]
[1728077895340,1.69595,2425.6,2425.4,1.60227]
[1728077896425,1.69595,2425.6,2425.5,0.41226]
[1728077896631,1.69595,2425.6,2425.4,1.60227]
[1728077905247,1.2837,2425.6,2425.4,1.19]
[1728077905439,2.6882697,2425.5,2425.4,1.60227]
[1728077906239,1.69595,2425.6,2425.4,1.60227]
[1728077906442,2.68827834,2425.5,2425.4,1.60227]
[1728077908646,2.68827834,2425.5,2425.4,5.72547]
[1728077908947,2.68827834,2425.5,2425.4,6.2577884]
[1728077909346,3.97197834,2425.6,2425.5,0.41226]
[1728077909547,3.97197834,2425.6,2425.5,0.9445784]
[1728077909750,3.97197834,2425.6,2425.5,5.7577784]
[1728077912147,3.97197834,2425.6,2425.5,0.9445784]
[1728077912348,3.97197834,2425.6,2425.5,2.1345784]
[1728077912654,3.97197834,2425.6,2425.5,0.9445784]
[1728077912953,3.97197834,2425.6,2425.0,2.76082942]
[1728077912954,1.03066,2425.5,2425.0,1.19]
[1728077913152,0.41232,2425.2,2425.1,1.38359505]
[1728077913347,2.68738946,2425.3,2425.1,0.53215194]
[1728077913651,1.9669,2425.2,2425.0,0.41234]
[1728077913849,1.9669,2425.2,2425.1,0.53215864]
[1728077914947,1.9669,2425.2,2425.1,0.53217085]
[1728077917158,1.9669,2425.2,2425.1,0.94450085]
[1728077919159,1.9669,2425.2,2425.1,0.41233]
[1728077920758,1.9669,2425.2,2425.1,1.60233]
[1728077927363,2.68738946,2425.4,2425.3,0.41229]
[1728077927666,2.0019,2425.5,2425.4,0.41228]
[1728077927964,2.41416,2425.5,2425.3,1.60228]
[1728077929765,2.0019,2425.5,2425.4,0.41228]
[1728077930264,2.0019,2425.5,2425.4,1.08898]
[1728077937162,1.3372,2425.5,2425.4,1.08898]